fUSD/lending_fUSD_20250205
["ID","MTS","AMOUNT","RATE_DAILY","PERIOD"]
[351686652,1738727157832,-500.0,0.00010717,2]
[351686653,1738727157854,-1170.10392999,0.00010854,2]
[351686657,1738727210360,-500.0,8.799e-05,2]
[351686658,1738727210397,-500.0,8.799e-05,2]
[351686659,1738727210418,-500.0,8.799e-05,2]
[351686660,1738727210438,-500.0,8.799e-05,2]
[351686661,1738727210458,-2446.46607001,0.00010854,2]
[351686662,1738727210479,-275.53921987,0.00010854,2]
[351686663,1738727234086,-503.83015779,8.799e-05,2]
[351686664,1738727234109,-500.0,8.799e-05,2]
[351686665,1738727234130,-1000.0,0.00010395,2]
[351686666,1738727234151,-224.46078013,0.00010854,2]
[351686667,1738727234173,-379.19,0.00010871,2]
[351686668,1738727234199,-953.11,0.00010876,2]
[351686669,1738727234222,-300.0,0.000109,2]
[351686670,1738727234244,-14046.68234175,0.00010901,2]
[351686671,1738727234266,-554.21,0.00010959,2]
[351686672,1738727234287,-3616.57,0.00010991,2]
[351686673,1738727234309,-500.0,0.00010991,2]
[351686674,1738727234331,-500.0,0.00011,2]
[351686675,1738727234353,-421.15029236,0.00011082,2]
[351686676,1738727234377,-3616.57,0.00011128,2]
[351686677,1738727234398,-500.0,0.00011128,2]
[351686678,1738727234418,-500.0,0.00011164,2]
[351686679,1738727234438,-164.23140124,0.00011165,2]
[351686680,1738727234461,-13210.47091726,0.00011221,2]
[351686681,1738727237110,-500.0,8.799e-05,2]
[351686682,1738727237134,-128010.69638159,0.00011221,2]
[351686683,1738727252155,-500.0,8.799e-05,2]
[351686684,1738727252179,-500.0,8.799e-05,2]
[351686685,1738727252201,-500.0,8.799e-05,2]
[351686686,1738727252223,-700.0,0.00010068,2]
[351686687,1738727252244,-715.22,0.00010533,2]
[351686688,1738727252267,-4115.03641829,0.00011221,2]
[351686738,1738727432395,-500.0,8.799e-05,2]
[351686739,1738727432405,-159.83463373,8.799e-05,2]
[351686740,1738727432451,-340.16536627,8.799e-05,2]
[351686741,1738727432461,-43.87657114,8.799e-05,2]
[351686742,1738727432510,-165.40905833,8.799e-05,2]
[351686743,1738727432519,-604.31,8.799e-05,2]
[351686744,1738727432529,-500.0,8.799e-05,2]
[351686745,1738727432538,-423.41099565,8.799e-05,2]
[351686746,1738727432551,-76.58900435,8.799e-05,2]
[351686747,1738727432561,-500.0,8.799e-05,2]
[351686748,1738727432570,-413.93,0.0001045,2]
[351686749,1738727432580,-413.93,0.00010452,2]
[351686750,1738727432589,-413.93,0.00010455,2]
[351686751,1738727432599,-413.93,0.00010458,2]
[351686752,1738727432608,-413.93,0.00010461,2]
[351686753,1738727432618,-413.93,0.00010463,2]
[351686754,1738727432627,-413.93,0.00010466,2]
[351686755,1738727432637,-413.93,0.00010469,2]
[351686756,1738727432648,-413.93,0.00010471,2]
[351686757,1738727432657,-413.93,0.00010474,2]
[351686758,1738727432666,-413.93,0.00010477,2]
[351686759,1738727432675,-413.93,0.0001048,2]
[351686760,1738727432684,-23900.0,0.00010482,2]
[351686761,1738727432693,-413.93,0.00010482,2]
[351686762,1738727432703,-413.93,0.00010485,2]
[351686763,1738727432712,-413.93,0.00010488,2]
[351686764,1738727432721,-413.93,0.00010491,2]
[351686765,1738727432731,-413.93,0.00010493,2]
[351686766,1738727432740,-413.93,0.00010496,2]
[351686767,1738727432749,-413.93,0.00010499,2]
[351686768,1738727432759,-413.93,0.00010502,2]
[351686769,1738727432769,-200.0,0.00010529,2]
[351686770,1738727432779,-4603.0,0.000106,5]
[351686771,1738727432788,-170.13,0.00010845,2]
[351686772,1738727432797,-6475.66052121,0.000109,2]
[351686773,1738727432811,-2535.45362981,0.000109,2]
[351686774,1738727432826,-9634.90483949,0.000109,2]
[351686775,1738727432837,-793.07877249,0.000109,2]
[351686776,1738727432849,-922.539993,0.000109,2]
[351686777,1738727432860,-6983.9256312,0.000109,2]
[351686778,1738727432871,-767146.70891792,0.000109,2]
[351686779,1738727432893,-706.92122751,0.000109,2]
[351686780,1738727432905,-6088.61886519,0.000109,2]
[351686781,1738727432930,-355.61369832,0.00010899,2]
[351686782,1738727432939,-1207.22001846,0.000109,2]
[351686799,1738727438453,-5851.48615214,0.000109,2]
[351686800,1738727438464,-301.91055826,0.000109,2]
[351686812,1738727439349,-165768.05558693,0.000109,2]
[351686813,1738727439405,-2001.44,0.000109,2]
[351686814,1738727439416,-2743.07912612,0.000109,2]
[351686815,1738727439431,-1059.09355,0.000109,2]
[351686816,1738727439442,-437.22126349,0.000109,2]
[351686817,1738727439454,-72783.79061151,0.000109,2]
[351686818,1738727439463,-150.0,0.00010959,2]
[351686819,1738727439472,-164.23140123,0.00011099,2]
[351686820,1738727439481,-500.0,0.00011164,2]
[351686821,1738727439491,-150.43,0.000112,2]
[351686822,1738727439501,-5359.14540564,0.00011221,2]
[351686823,1738727439510,-6952.57541641,0.00011221,2]
[351686824,1738727439520,-6254.2789641,0.00011223,2]
[351686825,1738727439529,-200.0,0.00011223,2]
[351686826,1738727439538,-41572.99263032,0.00011224,2]
[351686827,1738727439547,-6254.2789641,0.00011224,2]
[351686828,1738727439558,-501.38451865,0.00011225,2]
[351686829,1738727439567,-501.38451865,0.00011226,2]
[351686830,1738727439576,-200.0,0.00011226,2]
[351686831,1738727439586,-6254.2789641,0.00011226,2]
[351686832,1738727439595,-674.83948362,0.00011226,2]
[351686833,1738727439604,-337.41974181,0.00011227,2]
[351686834,1738727439613,-21835.00574145,0.00011228,2]
[351686835,1738727439623,-117631.17205831,0.00011229,2]
[351686836,1738727439632,-41572.99263032,0.00011229,2]
[351686837,1738727439642,-40030.25815021,0.00011229,2]
[351686838,1738727439651,-337.41974181,0.0001123,2]
[351686839,1738727439660,-337.41974181,0.00011231,2]
[351686840,1738727439669,-164.23140123,0.00011232,2]
[351686841,1738727439679,-41572.99263032,0.00011232,2]
[351686842,1738727439688,-337.41974181,0.00011235,2]
[351686843,1738727439697,-21835.00574145,0.00011235,2]
[351686844,1738727439708,-674.83948362,0.00011236,2]
[351686845,1738727439717,-283.5008125,0.00011236,2]
[351686846,1738727439726,-283.5008125,0.00011237,2]
[351686847,1738727439736,-92569.07422861,0.00011238,2]
[351686848,1738727439745,-7586.65964038,0.00011241,2]
[351686849,1738727439757,-11276.44661764,0.00011241,2]
[351686850,1738727439772,-7987.32486607,0.00011241,2]
[351686851,1738727440326,-44952.27381032,0.00011241,2]
[351686852,1738727440384,-12914.53867609,0.00011241,2]
[351686853,1738727440396,-296.57219751,0.00011241,2]
[351686854,1738727440407,-424.5593205,0.00011241,2]
[351686855,1738727440496,-464.86247294,0.00011241,2]
[351686856,1738727440553,-31727.93445686,0.00011241,2]
[351686857,1738727440563,-200.0,0.00011242,2]
[351686858,1738727440573,-1040.45382612,0.00011242,2]
[351686859,1738727440583,-674.83948362,0.00011245,2]
[351686860,1738727440592,-935.46987309,0.00011246,2]
[351686861,1738727440610,-554.05,0.00011246,2]
[351686862,1738727440669,-4764.75909101,0.00011246,2]
[351686863,1738727440678,-1175.24090899,0.00011246,2]
[351686864,1738727440690,-649.3719339,0.00011246,2]
[351686865,1738727440700,-501.38451865,0.00011247,2]
[351686866,1738727440711,-200.0,0.00011247,2]
[351686867,1738727440721,-501.38451865,0.00011249,2]
[351686869,1738727440731,-36.2255088,0.00011249,2]
[351686871,1738727440899,-59702.35403607,0.00011249,2]
[351686893,1738727443609,-90956.76957791,0.00011249,2]
[351686894,1738727443619,-40030.25815021,0.0001125,2]
[351686895,1738727443628,-6254.2789641,0.00011252,2]
[351686896,1738727443637,-1040.45382612,0.00011254,2]
[351686897,1738727443657,-21835.00574145,0.00011255,2]
[351686898,1738727443666,-150695.34912278,0.00011256,2]
[351686899,1738727443676,-1040.45382612,0.00011257,2]
[351686900,1738727443685,-20991.45911575,0.00011258,2]
[351686901,1738727443701,-4955.84013055,0.00011258,2]
[351686902,1738727443780,-34649.43671638,0.00011258,2]
[351686904,1738727443893,-9839.17492185,0.00011258,2]
[351686910,1738727444194,-47195.26117378,0.00011258,2]
[351686911,1738727444203,-283.5008125,0.00011258,2]
[351686912,1738727444213,-200.0,0.00011258,2]
[351686913,1738727444223,-200.0,0.00011259,2]
[351686914,1738727444232,-1824.61284289,0.00011259,2]
[351686915,1738727444242,-283.5008125,0.0001126,2]
[351686916,1738727444252,-337.41974181,0.00011263,2]
[351686917,1738727444262,-51228.28018362,0.00011263,2]
[351686927,1738727446442,-99467.06893916,0.00011263,2]
[351686928,1738727446453,-380.72,0.00011264,2]
[351686929,1738727446462,-374.51,0.00011264,2]
[351686930,1738727446472,-117631.17205831,0.00011266,2]
[351686931,1738727446483,-6952.57541641,0.00011268,2]
[351686932,1738727446492,-674.83948362,0.00011269,2]
[351686933,1738727446504,-200.0,0.00011269,2]
[351686934,1738727446515,-1036.35847684,0.0001127,2]
[351686935,1738727446525,-375.74,0.0001127,2]
[351686936,1738727446534,-1824.61284289,0.00011271,2]
[351686937,1738727446545,-6254.2789641,0.00011271,2]
[351686938,1738727446555,-1040.45382612,0.00011274,2]
[351686939,1738727446565,-18546.8237377,0.00011274,2]
[351686940,1738727446576,-74022.25049091,0.00011274,2]
[351686941,1738727446586,-6952.57541641,0.00011274,2]
[351686942,1738727446596,-21835.00574145,0.00011274,2]
[351686943,1738727446605,-6952.57541641,0.00011277,2]
[351686944,1738727446615,-40030.25815021,0.00011281,2]
[351686945,1738727446624,-6254.2789641,0.00011282,2]
[351686946,1738727446633,-337.41974181,0.00011284,2]
[351686947,1738727446643,-6254.2789641,0.00011285,2]
[351686948,1738727446652,-337.41974181,0.00011289,2]
[351686949,1738727446661,-92569.07422861,0.00011294,2]
[351686950,1738727446671,-40030.25815021,0.00011294,2]
[351686951,1738727446680,-337.41974181,0.00011297,2]
[351686952,1738727446689,-41572.99263032,0.00011298,2]
[351686953,1738727446699,-42087.19486249,0.00011299,2]
[351686954,1738727446714,-50481.87936612,0.00011299,2]
[351686955,1738727446723,-1824.61284289,0.000113,2]
[351686956,1738727446732,-18013.8450677,0.0001139,2]
[351686959,1738727446796,-6162.62698053,0.0001139,2]
[351686960,1738727446805,-4000.0,0.0001139,2]
[351686961,1738727446814,-3566.112,0.00011399,2]
[351686962,1738727446823,-161.399,0.00011399,2]
[351686963,1738727446833,-46.61768348,0.000114,2]
[351686964,1738727446845,-459.22917273,0.000114,2]
[351686965,1738727446854,-439.5,0.000114,2]
[351686966,1738727446864,-140.72013227,0.000114,2]
[351686967,1738727446875,-23.51126896,0.000114,2]
[351686968,1738727446882,-700.0,0.00011438,2]
[351686969,1738727446890,-1275.781,0.00011469,2]
[351686970,1738727446899,-2022.0,0.00011469,2]
[351686971,1738727446908,-150.0,0.00011469,2]
[351686972,1738727446917,-568.0,0.00011469,2]
[351686974,1738727446927,-637.0,0.00011469,2]
[351686976,1738727446936,-1867.0,0.00011469,2]
[351686978,1738727446950,-1263.0,0.00011469,2]
[351686980,1738727446960,-907.0,0.00011469,2]
[351686982,1738727446969,-2953.0,0.00011469,2]
[351686983,1738727446981,-783.0,0.00011469,2]
[351686984,1738727446991,-538.0,0.00011469,2]
[351686985,1738727447000,-150.0,0.00011469,2]
[351686986,1738727447009,-3910.0,0.00011469,2]
[351686987,1738727447018,-150.0,0.00011469,2]
[351686988,1738727447027,-285.973,0.00011469,2]
[351686989,1738727447037,-150.196,0.00011469,2]
[351686990,1738727447046,-1108.0,0.00011469,2]
[351686991,1738727447055,-150.084,0.00011469,2]
[351686992,1738727447065,-150.0,0.00011469,2]
[351686993,1738727447075,-154.049,0.00011469,2]
[351686994,1738727447084,-371.78,0.00011497,2]
[351686995,1738727447093,-376.66,0.00011497,2]
[351686996,1738727447102,-369.29,0.00011497,2]
[351686997,1738727447111,-500.39736219,0.00011497,2]
[351686998,1738727447121,-229.23881265,0.00011497,3]
[351686999,1738727447130,-500.0,0.00011498,2]
[351687000,1738727447140,-500.0,0.00011498,2]
[351687001,1738727447149,-186.40396783,0.00011498,2]
[351687002,1738727447158,-500.0,0.00011498,2]
[351687003,1738727447167,-271.93807833,0.00011498,2]
[351687004,1738727447177,-500.0,0.00011498,2]
[351687005,1738727447186,-500.0,0.00011498,2]
[351687006,1738727447196,-904.14,0.00011498,2]
[351687007,1738727447205,-511.5,0.00011498,2]
[351687008,1738727447214,-500.0,0.00011498,2]
[351687009,1738727447223,-500.0,0.00011498,2]
[351687010,1738727447232,-500.0,0.00011498,2]
[351687011,1738727447241,-500.0,0.00011498,2]
[351687012,1738727447250,-500.0,0.00011498,2]
[351687013,1738727447259,-500.0,0.00011498,2]
[351687014,1738727447268,-500.0,0.00011498,2]
[351687015,1738727447278,-542.15282688,0.00011498,2]
[351687016,1738727447287,-460.96993433,0.00011498,2]
[351687017,1738727447296,-500.0,0.00011498,2]
[351687018,1738727447305,-184.4,0.00011498,2]
[351687019,1738727447315,-619.19653046,0.00011498,2]
[351687020,1738727447324,-500.0,0.00011498,2]
[351687021,1738727447333,-500.0,0.00011498,2]
[351687022,1738727447342,-500.0,0.00011498,2]
[351687023,1738727447351,-1240.0,0.00011498,2]
[351687024,1738727447360,-155.460344,0.00011499,2]
[351687025,1738727447370,-181.905971,0.00011499,2]
[351687026,1738727447379,-500.0,0.00011499,2]
[351687027,1738727447388,-253.60353436,0.00011499,2]
[351687028,1738727447397,-64645.36836901,0.00011499,2]
[351687029,1738727742651,396.0,0.000189,120]
[351687039,1738728315462,171.46,7.077e-05,2]
[351687040,1738728479062,4170.95,7.668e-05,2]
[351687041,1738728515044,2319.48,7.668e-05,2]
[351687055,1738728584776,489.8,7.647e-05,2]
[351687056,1738728611506,1188.86,7.625e-05,2]
[351687062,1738728631554,-300.0,8.218e-05,2]
[351687063,1738728631564,-690.42750928,8.219e-05,2]
[351687064,1738728631575,-1132.87600634,8.219e-05,2]
[351687065,1738728631587,-747.34999,8.219e-05,2]
[351687066,1738728631613,-1506.63330701,8.219e-05,2]
[351687067,1738728631622,-2355.83,8.219e-05,2]
[351687068,1738728631632,-846.72,8.219e-05,2]
[351687069,1738728631641,-250.0,8.219e-05,2]
[351687070,1738728631650,-14669.8023,8.256e-05,2]
[351687071,1738728631659,-2000.0,8.482e-05,2]
[351687072,1738728631668,-2095.47,8.482e-05,2]
[351687073,1738728631677,-320.26,8.482e-05,2]
[351687074,1738728631686,-320.26,8.485e-05,2]
[351687075,1738728631695,-320.26,8.487e-05,2]
[351687076,1738728631705,-320.26,8.489e-05,2]
[351687077,1738728631714,-320.26,8.491e-05,2]
[351687078,1738728631723,-320.26,8.493e-05,2]
[351687079,1738728631732,-320.26,8.496e-05,2]
[351687080,1738728631742,-320.26,8.498e-05,2]
[351687081,1738728631752,-320.26,8.5e-05,2]
[351687082,1738728631761,-320.26,8.502e-05,2]
[351687083,1738728631770,-320.26,8.504e-05,2]
[351687084,1738728631779,-320.26,8.507e-05,2]
[351687085,1738728631789,-320.26,8.509e-05,2]
[351687086,1738728631799,-320.26,8.511e-05,2]
[351687087,1738728631808,-320.26,8.513e-05,2]
[351687088,1738728631818,-320.26,8.516e-05,2]
[351687089,1738728631827,-320.26,8.518e-05,2]
[351687090,1738728631837,-320.26,8.52e-05,2]
[351687091,1738728631847,-320.26,8.522e-05,2]
[351687092,1738728631856,-320.26,8.524e-05,2]
[351687093,1738728631866,-150.0,8.698e-05,2]
[351687094,1738728631875,-221.7885,8.699e-05,2]
[351687095,1738728631884,-800.2168,8.699e-05,2]
[351687096,1738728631894,-312.5645,8.699e-05,2]
[351687097,1738728631903,-1564.125,8.699e-05,2]
[351687098,1738728631912,-5305.3328,8.699e-05,2]
[351687100,1738728631921,-1000.0,8.835e-05,2]
[351687102,1738728631930,-500.0,8.835e-05,2]
[351687104,1738728631939,-178.89,8.835e-05,2]
[351687106,1738728631949,-350.03,8.835e-05,2]
[351687108,1738728631959,-413.88,8.835e-05,2]
[351687110,1738728631969,-500.0,8.835e-05,2]
[351687113,1738728631980,-319.01,8.835e-05,2]
[351687115,1738728631990,-500.0,8.835e-05,2]
[351687117,1738728632002,-211.39,8.835e-05,2]
[351687119,1738728632013,-500.0,8.835e-05,2]
[351687121,1738728632023,-500.0,8.835e-05,2]
[351687123,1738728632034,-540.30207129,8.835e-05,2]
[351687125,1738728632044,-500.0,8.835e-05,2]
[351687127,1738728632054,-500.0,8.835e-05,2]
[351687128,1738728632065,-500.0,8.835e-05,2]
[351687129,1738728632074,-500.0,8.835e-05,2]
[351687131,1738728632084,-500.0,8.835e-05,2]
[351687132,1738728632094,-603.76376964,8.835e-05,2]
[351687133,1738728632105,-500.0,8.835e-05,2]
[351687134,1738728632115,-382.82,8.835e-05,2]
[351687135,1738728632126,-18452.0695,8.836e-05,2]
[351687136,1738728632137,-304.9274,8.836e-05,2]
[351687137,1738728632147,-858.3891,8.836e-05,2]
[351687138,1738728632157,-3416.7088,8.836e-05,2]
[351687139,1738728632168,-1842.9038,8.836e-05,2]
[351687140,1738728632179,-543.1371,8.836e-05,2]
[351687141,1738728632190,-502.4849,8.836e-05,2]
[351687142,1738728632201,-2287.6554,8.836e-05,2]
[351687143,1738728632211,-1254.9263,8.836e-05,2]
[351687144,1738728632222,-14604.1975,8.836e-05,2]
[351687145,1738728632233,-242065.1523,8.836e-05,2]
[351687146,1738728632244,-500.0,8.851e-05,2]
[351687147,1738728632254,-2500.0,8.851e-05,2]
[351687148,1738728632264,-23900.0,8.912e-05,2]
[351687149,1738728632274,-1000.0,8.941e-05,2]
[351687150,1738728632284,-500.0,8.972e-05,2]
[351687151,1738728632295,-500.0,8.972e-05,2]
[351687152,1738728632305,-310.06102231,8.972e-05,2]
[351687153,1738728632315,-500.0,8.972e-05,2]
[351687154,1738728632325,-500.0,8.972e-05,2]
[351687155,1738728632334,-500.0,8.972e-05,2]
[351687156,1738728632345,-9790.8691,8.973e-05,2]
[351687157,1738728632356,-5000.0,8.973e-05,2]
[351687158,1738728632367,-4483.21,9.011e-05,2]
[351687159,1738728632380,-420.0,9.04e-05,2]
[351687160,1738728632391,-500.0,9.081e-05,2]
[351687161,1738728632402,-500.0,9.109e-05,2]
[351687162,1738728632415,-500.0,9.109e-05,2]
[351687163,1738728632426,-500.0,9.109e-05,2]
[351687164,1738728632437,-500.0,9.109e-05,2]
[351687165,1738728632449,-500.0,9.109e-05,2]
[351687166,1738728632459,-1160.8,9.146e-05,2]
[351687167,1738728632470,-200.0,9.186e-05,2]
[351687168,1738728632481,-500.0,9.246e-05,2]
[351687169,1738728632492,-500.0,9.246e-05,2]
[351687170,1738728632503,-500.0,9.246e-05,2]
[351687171,1738728632514,-500.0,9.246e-05,2]
[351687172,1738728632524,-500.0,9.246e-05,2]
[351687173,1738728632536,-331.91,9.258e-05,2]
[351687174,1738728632546,-925.53,9.368e-05,2]
[351687175,1738728632557,-500.0,9.383e-05,2]
[351687176,1738728632567,-500.0,9.383e-05,2]
[351687177,1738728632579,-500.0,9.383e-05,2]
[351687178,1738728632590,-500.0,9.383e-05,2]
[351687179,1738728632600,-500.0,9.383e-05,2]
[351687180,1738728632611,-500.0,9.52e-05,2]
[351687181,1738728632622,-437.3655605,9.52e-05,2]
[351687182,1738728632633,-253.47860517,9.52e-05,2]
[351687183,1738728632644,-500.0,9.52e-05,2]
[351687184,1738728632654,-500.0,9.52e-05,2]
[351687185,1738728632664,-255.0,9.568e-05,2]
[351687186,1738728632676,-176.63,9.652e-05,2]
[351687187,1738728632687,-500.0,9.657e-05,2]
[351687188,1738728632698,-500.0,9.657e-05,2]
[351687189,1738728632709,-500.0,9.657e-05,2]
[351687190,1738728632719,-500.0,9.794e-05,2]
[351687191,1738728632730,-500.0,9.794e-05,2]
[351687192,1738728632740,-483.79217417,9.794e-05,2]
[351687193,1738728632751,-1000.0,9.863e-05,2]
[351687194,1738728632763,-167.54,9.892e-05,2]
[351687195,1738728632773,-1521.42,9.908e-05,2]
[351687196,1738728632783,-302.64823767,9.915e-05,2]
[351687197,1738728632793,-500.0,9.931e-05,2]
[351687198,1738728632803,-500.0,9.931e-05,2]
[351687199,1738728632814,-587.0,9.944e-05,2]
[351687200,1738728632825,-193.69,9.944e-05,2]
[351687201,1738728632835,-500.0,0.0001,2]
[351687202,1738728632845,-500.0,0.0001,2]
[351687203,1738728632856,-500.0,0.0001,2]
[351687204,1738728632866,-500.0,0.0001,2]
[351687205,1738728632876,-88054.9546204,0.0001,2]
[351687206,1738728632890,-750.37477044,0.0001,2]
[351687207,1738728632903,-11536.91535681,0.0001,2]
[351687208,1738728632917,-3104.27952186,0.0001,2]
[351687209,1738728632931,-1956.94,0.0001,2]
[351687210,1738728632946,-55740.91054068,0.0001,2]
[351687211,1738728632958,-6726.07,0.00010015,2]
[351687212,1738728632968,-1000.0,0.00010058,2]
[351687213,1738728632978,-1238.26,0.00010059,2]
[351687214,1738728632987,-500.0,0.00010068,2]
[351687215,1738728632997,-500.0,0.00010068,2]
[351687216,1738728633007,-867.33,0.00010137,2]
[351687217,1738728633017,-500.0,0.00010205,2]
[351687218,1738728633027,-500.0,0.00010205,2]
[351687219,1738728633037,-500.0,0.00010342,2]
[351687220,1738728633047,-330.35533801,0.00010342,2]
[351687221,1738728633058,-846.72,0.00010382,2]
[351687222,1738728633068,-500.0,0.00010479,2]
[351687223,1738728633080,-250.0,0.0001049,2]
[351687224,1738728633091,-433.0,0.00010524,2]
[351687225,1738728633102,-500.0,0.00010616,2]
[351687226,1738728633113,-380.21,0.00010694,2]
[351687227,1738728633123,-500.0,0.00010712,2]
[351687228,1738728633133,-500.0,0.00010753,2]
[351687229,1738728633142,-500.0,0.0001089,2]
[351687230,1738728633153,-3300.0,0.00010901,2]
[351687231,1738728633163,-823.0,0.00010938,2]
[351687232,1738728633173,-500.0,0.00011,2]
[351687233,1738728633183,-500.0,0.00011,2]
[351687234,1738728633193,-500.0,0.00011,2]
[351687235,1738728633205,-500.0,0.00011,2]
[351687236,1738728633215,-500.0,0.00011,2]
[351687237,1738728633225,-500.0,0.00011,2]
[351687238,1738728633234,-500.0,0.00011027,2]
[351687239,1738728633244,-592.75,0.00011041,2]
[351687240,1738728633254,-879.0,0.00011041,2]
[351687241,1738728633265,-150.919,0.00011086,2]
[351687242,1738728633275,-3910.0,0.00011086,2]
[351687243,1738728633285,-1006.0,0.00011086,2]
[351687244,1738728633295,-1521.42,0.00011147,2]
[351687245,1738728633305,-600.0,0.00011164,2]
[351687246,1738728633315,-500.0,0.00011164,2]
[351687247,1738728633325,-500.0,0.00011164,2]
[351687248,1738728633335,-421.15029236,0.00011169,2]
[351687249,1738728633345,-1000.0,0.00011176,2]
[351687250,1738728633355,-150.0,0.00011178,2]
[351687251,1738728633367,-300.0,0.00011178,2]
[351687252,1738728633379,-1749.0,0.000112,2]
[351687253,1738728633389,-1079.35488235,0.00011221,2]
[351687254,1738728633399,-200.0,0.00011222,2]
[351687255,1738728633410,-9647.28009505,0.00011222,2]
[351687256,1738728633420,-24080.28840443,0.00011222,2]
[351687257,1738728633430,-104887.35513401,0.00011223,2]
[351687258,1738728633440,-9080.24209808,0.00011224,2]
[351687259,1738728633453,-13509.95505155,0.00011224,2]
[351687260,1738728633464,-9647.28009505,0.00011228,2]
[351687261,1738728633474,-552.29895915,0.00011229,2]
[351687262,1738728633484,-2500.621619,0.0001123,2]
[351687263,1738728633495,-265267.98022265,0.00011231,2]
[351687264,1738728633505,-13823.72752371,0.00011231,2]
[351687265,1738728633516,-619.53173611,0.00011233,2]
[351687266,1738728633526,-7890.97193352,0.00011234,2]
[351687267,1738728633537,-105844.6807497,0.00011234,2]
[351687268,1738728633550,-688.68723581,0.00011234,2]
[351687269,1738728633563,-1318.42625278,0.00011234,2]
[351687270,1738728633583,-3700.0,0.00011234,2]
[351687271,1738728633596,-9453.36066244,0.00011234,2]
[351687272,1738728633608,-21934.84265,0.00011234,2]
[351687273,1738728633620,-82593.75164502,0.00011234,2]
[351687274,1738728633633,-106287.71298547,0.00011234,2]
[351687275,1738728633643,-13368.4071217,0.00011234,2]
[351687276,1738728633655,-1643.91621459,0.00011234,2]
[351687277,1738728633713,-1372.6227422,0.00011234,2]
[351687278,1738728633725,-6205.25107114,0.00011234,2]
[351687279,1738728633736,-4862.10305665,0.00011234,2]
[351687292,1738728637460,-426.01844767,8.835e-05,2]
[351687293,1738728637471,-585.84976885,0.00011234,2]
[351687294,1738728637482,-2055.2079012,0.00011234,2]
[351687295,1738728637495,-818.22497873,0.00011234,2]
[351687296,1738728637573,-353.43,0.00011234,2]
[351687297,1738728637585,-488.45942115,0.00011234,2]
[351687298,1738728637598,-670.435461,0.00011234,2]
[351687299,1738728637630,-1016.2321986,0.00011234,2]
[351687300,1738728637642,-1574.59846429,0.00011234,2]
[351687301,1738728637689,-1399.18627324,0.00011234,2]
[351687302,1738728637700,-644.89771432,0.00011235,2]
[351687303,1738728637710,-8816.84959428,0.00011239,2]
[351687304,1738728637720,-8816.84959428,0.00011239,2]
[351687305,1738728637730,-22739.19239448,0.00011239,2]
[351687306,1738728637740,-22590.19714963,0.00011239,2]
[351687307,1738728637750,-619.53173611,0.0001124,2]
[351687308,1738728637760,-274.86452657,0.00011241,2]
[351687309,1738728637771,-95285.02021565,0.00011244,2]
[351687310,1738728637783,-3593.88520939,0.00011244,2]
[351687311,1738728637799,-14247.0,0.00011244,2]
[351687345,1738728639451,-1108.0,0.00011086,2]
[351687346,1738728639460,-128.18809784,0.00011244,2]
[351687351,1738728639509,-218567.36865834,0.00011244,2]
[351687354,1738728639519,-54963.83645117,0.00011246,2]
[351687356,1738728639529,-552.29895915,0.00011249,2]
[351687358,1738728639538,-54963.83645117,0.00011251,2]
[351687360,1738728639547,-644.89771432,0.00011251,2]
[351687362,1738728639556,-619.53173611,0.00011252,2]
[351687364,1738728639566,-27278.53679216,0.00011253,2]
[351687366,1738728639575,-54963.83645117,0.00011253,2]
[351687368,1738728639584,-207.65087644,0.00011253,2]
[351687369,1738728639593,-29952.50434939,0.00011255,2]
[351687371,1738728639603,-29952.50434939,0.00011255,2]
[351687373,1738728639612,-104887.35513401,0.00011256,2]
[351687375,1738728639622,-22739.19239448,0.00011256,2]
[351687377,1738728639631,-24080.28840443,0.00011257,2]
[351687379,1738728639640,-644.89771432,0.00011258,2]
[351687381,1738728639649,-27278.53679216,0.00011259,2]
[351687383,1738728639658,-7890.97193352,0.0001126,2]